bitfinex/quotes_BTCUSD_20241201
["timestamp","ask_amount","ask_price","bid_price","bid_amount"]
[1733021230239,8e-07,96028.0,96027.0,0.67936001]
[1733021230661,8e-07,96028.0,96027.0,0.68108521]
[1733021230897,8e-07,96028.0,96027.0,0.24256856]
[1733021231118,0.0806008,96028.0,96027.0,0.24256856]
[1733021231963,0.0806008,96028.0,96027.0,0.23356856]
[1733021232404,0.0806008,96028.0,96027.0,0.38356856]
[1733021233029,0.0806008,96028.0,96027.0,0.37456856]
[1733021233237,0.0806008,96028.0,96027.0,0.38356856]
[1733021233446,0.0806008,96028.0,96027.0,0.39256856]
[1733021233939,0.0806008,96028.0,96027.0,0.38356856]
[1733021234145,0.0806008,96028.0,96027.0,0.39256856]
[1733021235649,0.0806008,96028.0,96027.0,0.62470556]
[1733021236300,8e-07,96028.0,96027.0,0.40256856]
[1733021236522,8e-07,96028.0,96027.0,0.68108521]
[1733021236759,8e-07,96028.0,96027.0,0.40256856]
[1733021236984,8e-07,96028.0,96027.0,0.39256856]
[1733021237200,8e-07,96028.0,96027.0,0.67154334]
[1733021237201,0.1264008,96028.0,96027.0,0.67154334]
[1733021237461,0.1264008,96028.0,96027.0,0.39256856]
[1733021242112,0.1264008,96028.0,96027.0,0.38133949]
[1733021246008,0.1264008,96028.0,96027.0,0.66138048]
[1733021246364,0.1264008,96028.0,96027.0,0.38133949]
[1733021247274,0.1264008,96028.0,96027.0,0.66146262]
[1733021247714,0.1264008,96028.0,96027.0,0.38133949]
[1733021247928,0.1264008,96028.0,96027.0,0.02306549]
[1733021248138,0.1264008,96028.0,96027.0,0.17306549]
[1733021248540,0.1363608,96028.0,96027.0,0.02306549]
[1733021249211,0.1363608,96028.0,96000.0,0.14867148]
[1733021249212,0.0099608,96028.0,96017.0,0.2335025]
[1733021249413,0.0099608,96028.0,96015.0,0.2335025]
[1733021249414,0.342849,96020.0,96015.0,0.2335025]
[1733021249630,0.342849,96020.0,96011.0,0.2335025]
[1733021249826,0.342849,96020.0,96000.0,0.0009934]
[1733021249827,0.342849,96020.0,96010.0,0.2335025]
[1733021250264,0.342849,96020.0,96008.0,0.2335025]
[1733021250683,0.342849,96020.0,96007.0,0.2335025]
[1733021250684,0.218273,96009.0,96007.0,0.2335025]
[1733021250906,0.218273,96009.0,96000.0,0.0509934]
[1733021250907,0.0782,96005.0,96002.0,0.2335025]
[1733021251118,0.00996,96003.0,96002.0,0.2335025]
[1733021251314,0.00996,96003.0,96000.0,0.20011851]
[1733021251523,0.00996,96001.0,96000.0,0.20011851]
[1733021252137,0.05636,96001.0,96000.0,0.20011851]
[1733021252333,0.05636,96001.0,96000.0,0.05011851]
[1733021252560,0.05636,96001.0,96000.0,0.40845151]
[1733021252798,0.05636,96001.0,96000.0,0.20011851]
[1733021253210,0.05736,96001.0,96000.0,0.20711851]
[1733021254182,0.05836,96001.0,96000.0,0.21784371]
[1733021256920,0.05836,96001.0,96000.0,0.22099111]
[1733021263754,0.002,96001.0,96000.0,0.22099111]
[1733021272123,0.002,96001.0,96000.0,0.23099111]
[1733021272327,0.002,96001.0,96000.0,0.72093302]
[1733021272527,0.002,96001.0,96000.0,0.33879622]
[1733021273016,0.002,96001.0,96000.0,0.36179622]
[1733021273222,0.001,96001.0,96000.0,0.35479622]
[1733021273432,0.0108227,96019.0,96005.0,0.01]
[1733021273635,0.0108227,96019.0,96018.0,0.15]
[1733021274085,0.0108227,96019.0,96018.0,0.15313521]
[1733021274293,0.0108227,96019.0,96018.0,0.38635185]
[1733021275346,0.0108227,96019.0,96018.0,0.15313521]
[1733021275554,0.0108227,96019.0,96018.0,0.38640581]
[1733021275786,0.0108227,96019.0,96018.0,0.15813521]
[1733021275926,0.0108227,96019.0,96018.0,0.39540581]
[1733021276793,0.0108227,96019.0,96018.0,0.16213521]
[1733021279823,0.0008627,96019.0,96018.0,0.16213521]
[1733021280980,0.0008627,96019.0,96018.0,0.01213521]
[1733021281183,0.0580227,96019.0,96018.0,0.01213521]
[1733021281596,0.0580227,96019.0,96018.0,0.39554072]
[1733021281597,0.1332227,96019.0,96018.0,0.39554072]
[1733021281991,0.1332227,96019.0,96018.0,0.01213521]
[1733021282193,0.1332227,96019.0,96009.0,0.23340551]
[1733021282194,0.00996,96013.0,96009.0,0.23340551]
[1733021282397,0.00996,96004.0,96002.0,0.23340551]
[1733021282602,0.00996,96001.0,96000.0,0.28524922]
[1733021282798,0.00996,96001.0,96000.0,0.05184371]
[1733021283268,0.00996,96001.0,96000.0,0.00184371]
[1733021283470,0.13676,96001.0,96000.0,0.00184371]
[1733021284060,0.13676,96001.0,96000.0,0.01784371]
[1733021284916,0.13676,96001.0,96000.0,0.02078944]
[1733021292613,0.13676,96001.0,96000.0,0.01784371]
[1733021294318,0.13676,96001.0,96000.0,0.02079103]
[1733021297552,0.13676,96001.0,96000.0,0.01784371]
[1733021299527,0.0772,96007.0,96000.0,0.01784371]
[1733021299724,0.00996,96001.0,96000.0,0.01784371]
[1733021299939,0.00996,96001.0,96000.0,0.02080033]
[1733021300355,0.00996,96001.0,96000.0,0.03198613]
[1733021301325,0.00996,96001.0,96000.0,0.02498613]
[1733021301530,0.00996,96001.0,96000.0,0.02998613]
[1733021301752,0.00996,96001.0,96000.0,0.02098613]
[1733021301971,0.00996,96001.0,96000.0,0.02298613]
[1733021302185,0.00996,96001.0,96000.0,0.01598613]
[1733021302383,0.00996,96001.0,96000.0,0.02198613]
[1733021302589,0.01096,96001.0,96000.0,0.03098613]
[1733021305407,0.14196,96001.0,96000.0,0.01980033]
[1733021310510,0.14196,96001.0,96000.0,0.01684371]
[1733021312477,0.01096,96001.0,96000.0,0.01684371]
[1733021312682,0.01096,96001.0,96000.0,0.16979701]
[1733021316413,0.01096,96001.0,96000.0,0.01979701]
[1733021316821,0.05616,96001.0,96000.0,0.01979701]
[1733021317665,0.05616,96001.0,96000.0,0.02794147]
[1733021317871,0.13876,96001.0,96000.0,0.02794147]
[1733021318073,0.13876,96001.0,96000.0,0.03089299]
[1733021318316,0.13876,96001.0,96000.0,0.41453879]
[1733021318574,0.13876,96001.0,96000.0,0.18089299]
[1733021318783,0.13876,96001.0,96000.0,0.16979523]
[1733021318987,0.13876,96001.0,96000.0,0.4034547]
[1733021319394,0.13876,96001.0,96000.0,0.16979523]
[1733021319605,0.13876,96001.0,96000.0,0.25349359]
[1733021319810,0.13876,96001.0,96000.0,0.16979523]
[1733021320830,0.13876,96001.0,96000.0,0.01979523]
[1733021322101,0.13876,96001.0,96000.0,0.01684371]
[1733021322307,0.13876,96001.0,96000.0,0.0197978]
[1733021323783,0.13876,96001.0,96000.0,0.01684371]
[1733021325194,0.13876,96001.0,96000.0,0.0197978]
[1733021331224,0.01096,96001.0,96000.0,0.30034365]
[1733021331447,0.001,96001.0,96000.0,0.1697978]
[1733021332195,0.001,96001.0,96000.0,0.20069135]
[1733021332434,0.001,96001.0,96000.0,0.05069135]
[1733021332770,0.001,96001.0,96000.0,0.09249135]
[1733021332932,0.001,96001.0,96000.0,0.33613489]
[1733021333160,0.001,96001.0,96000.0,0.33429135]
[1733021333661,0.001,96001.0,96000.0,0.35129135]
[1733021333900,0.002,96001.0,96000.0,0.35929135]
[1733021334144,0.001,96001.0,96000.0,0.35029135]
[1733021334346,0.0008627,96019.0,96017.0,0.208296]
[1733021334598,0.0108227,96019.0,96017.0,0.36123465]
[1733021336200,0.0008627,96019.0,96017.0,0.36523465]
[1733021337029,0.0008627,96019.0,96017.0,0.36823465]
[1733021337233,0.0008627,96019.0,96017.0,0.36423465]
[1733021337613,0.0008627,96019.0,96017.0,0.36923465]
[1733021339024,0.0008627,96019.0,96017.0,0.44853465]
[1733021339424,0.0008627,96019.0,96017.0,0.47153465]
[1733021340294,0.0008627,96019.0,96017.0,0.46853465]
[1733021340520,0.0008627,96019.0,96017.0,0.47253465]
[1733021340873,0.0008627,96019.0,96017.0,0.46753465]
[1733021341342,0.0008627,96019.0,96017.0,0.47353465]
[1733021342236,0.0008627,96019.0,96017.0,0.48479767]
[1733021342445,0.0008627,96019.0,96017.0,0.38249767]
[1733021343082,0.0008627,96019.0,96017.0,0.37849767]
[1733021343499,0.0008627,96019.0,96017.0,0.38249767]
[1733021343705,0.0108231,96018.0,96017.0,0.29300882]
[1733021343924,0.0108231,96018.0,96017.0,0.24235068]
[1733021344161,0.0108231,96018.0,96017.0,0.00893865]
[1733021344369,0.2191171,96018.0,96017.0,0.01293865]
[1733021344579,0.2665171,96018.0,96017.0,0.00693865]
[1733021344786,0.0582231,96018.0,96017.0,0.01193865]
[1733021344996,0.2665171,96018.0,96017.0,0.01193865]
[1733021345207,0.2665171,96018.0,96017.0,0.004]
[1733021345681,0.2665171,96018.0,96017.0,0.001]
[1733021345892,0.2665171,96018.0,96017.0,0.003]
[1733021346107,0.3469171,96018.0,96017.0,0.003]
[1733021346337,0.3469171,96018.0,96010.0,0.05]
[1733021346539,0.218269,96011.0,96010.0,0.05]
[1733021346758,0.218269,96011.0,96002.0,0.23342273]
[1733021346978,0.00996,96003.0,96002.0,0.23342273]
[1733021347394,0.00996,96003.0,96002.0,0.38342273]
[1733021347630,0.00996,96003.0,96002.0,0.15]
[1733021348346,0.00996,96003.0,96002.0,0.009]
[1733021348772,0.00996,96003.0,96002.0,0.15]
[1733021348972,0.00996,96003.0,96002.0,0.158]
[1733021349174,0.00996,96003.0,96002.0,0.163]
[1733021350036,0.00996,96003.0,96002.0,0.008]
[1733021350241,0.00996,96003.0,96002.0,0.005]
[1733021350847,0.00996,96002.0,96001.0,0.15]
[1733021351702,0.00996,96002.0,96001.0,0.208331]
[1733021351919,0.00996,96002.0,96001.0,0.358331]
[1733021352371,0.00996,96002.0,96001.0,0.159]
[1733021352847,0.00996,96002.0,96001.0,0.009]
[1733021353258,0.00996,96002.0,96001.0,0.015]
[1733021356765,0.13776,96002.0,96001.0,0.015]
[1733021358881,0.13776,96002.0,96001.0,0.0167262]
[1733021359319,0.13776,96002.0,96001.0,0.01967638]
[1733021362153,0.13776,96002.0,96001.0,0.40322432]
[1733021363015,0.13776,96002.0,96001.0,0.16967638]
[1733021363606,0.13776,96002.0,96001.0,0.01067638]
[1733021363909,0.13776,96002.0,96001.0,0.01767638]
[1733021364334,0.13776,96002.0,96001.0,0.01167638]
[1733021364658,0.13776,96002.0,96001.0,0.39922797]
[1733021364888,0.13776,96002.0,96001.0,0.01567638]
[1733021365624,0.13776,96002.0,96001.0,0.01167638]
[1733021366033,0.13776,96002.0,96001.0,0.01567638]
[1733021366227,0.13776,96002.0,96001.0,0.00867638]
[1733021366708,0.13776,96002.0,96001.0,0.01567638]
[1733021366899,0.13776,96002.0,96001.0,0.00867638]
[1733021367108,0.13776,96002.0,96001.0,0.01167638]
[1733021367364,0.13776,96002.0,96001.0,0.00767638]
[1733021367574,0.13776,96002.0,96001.0,0.00867638]
[1733021367741,0.13776,96002.0,96001.0,0.01167638]
[1733021368122,0.13776,96002.0,96001.0,0.00767638]
[1733021368340,0.13776,96002.0,96001.0,0.00967638]
[1733021370810,0.13776,96002.0,96001.0,0.0067262]
[1733021377902,0.14776,96002.0,96001.0,0.0067262]
[1733021378370,0.15776,96002.0,96001.0,0.0067262]
[1733021379033,0.15776,96002.0,96001.0,0.0047262]
[1733021379657,0.16864516,96002.0,96001.0,0.0017262]
[1733021379858,0.17164516,96002.0,96001.0,0.0017262]
[1733021380033,0.16864516,96002.0,96001.0,0.0017262]
[1733021380518,0.17264516,96002.0,96001.0,0.0027262]
[1733021380983,0.17164516,96002.0,96001.0,0.0027262]
[1733021381195,0.17364516,96002.0,96001.0,0.0027262]
[1733021395611,0.14368516,96002.0,96001.0,0.0027262]
[1733021395888,0.15364516,96002.0,96001.0,0.0027262]
[1733021396392,0.07324516,96002.0,96001.0,0.0027262]
[1733021396638,0.01496,96002.0,96001.0,0.0027262]
[1733021396863,0.00996,96002.0,96001.0,0.0017262]
[1733021397097,0.01496,96002.0,96001.0,0.0027262]
[1733021397536,0.01496,96002.0,96001.0,0.00569962]
[1733021397776,0.01196,96002.0,96001.0,0.0017262]
[1733021398032,0.01196,96002.0,96001.0,0.00469962]
[1733021398267,0.01196,96002.0,96001.0,0.0017262]
[1733021398705,0.01196,96002.0,96001.0,0.00469962]
[1733021399230,0.00996,96002.0,96001.0,0.00469962]
[1733021399472,0.01196,96002.0,96001.0,0.00469962]
[1733021400176,0.00996,96002.0,96001.0,0.00469962]
[1733021400415,0.208311,96011.0,96001.0,0.00469962]
[1733021400666,0.208305,96013.0,96001.0,0.00469962]
[1733021400919,0.00996,96002.0,96001.0,0.00469962]
[1733021401605,0.00996,96002.0,96001.0,0.0017262]
[1733021402703,0.09036,96002.0,96001.0,0.0017262]
[1733021404165,0.10141643,96002.0,96001.0,0.0017262]
[1733021404594,0.10641643,96002.0,96001.0,0.0017262]
[1733021404817,0.10341643,96002.0,96001.0,0.0017262]
[1733021405860,0.10141643,96002.0,96001.0,0.0017262]
[1733021406067,0.10741643,96002.0,96001.0,0.0017262]
[1733021406273,0.15411643,96002.0,96001.0,0.0017262]
[1733021406473,0.16411643,96002.0,96001.0,0.0017262]
[1733021407172,0.16211643,96002.0,96001.0,0.0017262]
[1733021407338,0.15811643,96002.0,96001.0,0.0017262]
[1733021407538,0.16011643,96002.0,96001.0,0.0017262]
[1733021407769,0.16411643,96002.0,96001.0,0.0017262]
[1733021409871,0.16011643,96002.0,96001.0,0.0017262]
[1733021410335,0.16211643,96002.0,96001.0,0.0017262]
[1733021410738,0.16411643,96002.0,96001.0,0.0017262]
[1733021411691,0.15306,96002.0,96001.0,0.0017262]
[1733021412321,0.14306,96002.0,96001.0,0.0017262]
[1733021412969,0.01596,96002.0,96001.0,0.0017262]
[1733021414040,0.01396,96002.0,96001.0,0.0017262]
[1733021414234,0.00996,96002.0,96001.0,0.00469571]
[1733021414445,0.00996,96002.0,96001.0,0.0017262]
[1733021414650,0.00996,96002.0,96001.0,0.00469571]
[1733021414857,0.00996,96002.0,96001.0,0.0017262]
[1733021415073,0.00996,96002.0,96001.0,0.00469571]
[1733021415285,0.01196,96002.0,96001.0,0.0017262]
[1733021415497,0.14186,96002.0,96001.0,0.00469571]
[1733021415709,0.14186,96002.0,96001.0,0.0017262]
[1733021415923,0.13986,96002.0,96001.0,0.0017262]
[1733021417056,0.14586,96002.0,96001.0,0.0017262]
[1733021417916,0.14186,96002.0,96001.0,0.0017262]
[1733021418328,0.13986,96002.0,96001.0,0.0017262]
[1733021418577,0.14586,96002.0,96001.0,0.0017262]
[1733021419456,0.14386,96002.0,96001.0,0.0017262]
[1733021419657,0.14586,96002.0,96001.0,0.0017262]
[1733021421343,0.14186,96002.0,96001.0,0.0017262]
[1733021421566,0.13986,96002.0,96001.0,0.0017262]
[1733021421827,0.14586,96002.0,96001.0,0.0017262]
[1733021422993,0.13986,96002.0,96001.0,0.0017262]
[1733021423424,0.14386,96002.0,96001.0,0.0017262]
[1733021424526,0.14586,96002.0,96001.0,0.0017262]
[1733021429236,0.13986,96002.0,96001.0,0.0017262]
[1733021429440,0.14286,96002.0,96001.0,0.0017262]
[1733021430727,0.14386,96002.0,96001.0,0.0017262]
[1733021433279,0.01396,96002.0,96001.0,0.0017262]
[1733021434033,0.01296,96002.0,96001.0,0.23992084]
[1733021434237,0.01396,96002.0,96001.0,0.23993669]
[1733021434790,0.01296,96002.0,96001.0,0.23993669]
[1733021435153,0.00996,96002.0,96001.0,0.23992442]
[1733021435551,0.01196,96002.0,96001.0,0.23992442]
[1733021435767,0.00996,96002.0,96001.0,0.23992052]
[1733021436215,0.00996,96002.0,96001.0,0.23992585]
[1733021437249,0.00996,96002.0,96001.0,0.24093253]
[1733021437831,0.00996,96002.0,96001.0,0.24193253]
[1733021438170,0.00996,96002.0,96001.0,0.00800246]
[1733021438803,0.00996,96002.0,96001.0,0.0037262]
[1733021439007,0.00996,96002.0,96001.0,0.00799801]
[1733021439236,0.00996,96002.0,96001.0,0.0037262]
[1733021439431,0.00996,96002.0,96001.0,0.00799801]
[1733021439661,0.00996,96002.0,96001.0,0.0037262]
[1733021440585,0.0008631,96018.0,96002.0,0.208328]
[1733021440781,0.0008631,96018.0,96010.0,0.23394973]
[1733021440908,0.0008631,96018.0,96010.0,0.208311]
[1733021440909,0.00996,96011.0,96010.0,0.208311]
[1733021441112,0.0008631,96018.0,96014.0,0.208301]
[1733021441703,0.00996,96015.0,96014.0,0.208301]
[1733021442581,0.00996,96015.0,96014.0,0.39004621]
[1733021442837,0.00996,96017.0,96014.0,0.18474521]
[1733021443067,0.00996,96015.0,96014.0,0.10584521]
[1733021443278,0.00996,96015.0,96014.0,0.03141622]
[1733021443495,0.00996,96008.0,96007.0,0.15]
[1733021443724,0.00996,96008.0,96007.0,0.37228875]
[1733021443930,0.00996,96008.0,96007.0,0.37044521]
[1733021444964,0.00996,96008.0,96007.0,0.37444521]
[1733021445145,0.01096,96008.0,96007.0,0.38244521]
[1733021448873,0.01096,96008.0,96007.0,0.34064521]
[1733021449101,0.01096,96008.0,96007.0,0.26484521]
[1733021449327,0.01096,96008.0,96007.0,0.26910097]
[1733021451011,0.01096,96008.0,96007.0,0.54944913]
[1733021451281,0.001,96008.0,96007.0,0.26910097]
[1733021451483,0.01096,96008.0,96007.0,0.26910097]
[1733021451885,0.01096,96008.0,96007.0,0.54934739]
[1733021452092,0.01096,96008.0,96007.0,0.26910097]
[1733021459110,0.001,96008.0,96007.0,0.26910097]
[1733021459266,0.01096,96008.0,96007.0,0.26910097]
[1733021460351,0.001,96008.0,96007.0,0.54920115]
[1733021460553,0.001,96008.0,96007.0,0.38670097]
[1733021460869,0.001,96008.0,96007.0,0.82328639]
[1733021461069,0.001,96008.0,96007.0,0.40970097]
[1733021461339,0.001,96008.0,96007.0,0.45051549]
[1733021461540,0.0008631,96018.0,96008.0,0.0758]
[1733021461741,0.0008631,96018.0,96017.0,0.358296]
[1733021461889,0.0008631,96018.0,96017.0,0.46114121]
[1733021462095,0.0008631,96018.0,96017.0,0.48838288]
[1733021463350,0.0008631,96018.0,96017.0,0.49338288]
[1733021463550,0.0008631,96018.0,96017.0,0.77318488]
[1733021464268,0.0008631,96018.0,96017.0,0.78018488]
[1733021465528,0.0008631,96018.0,96017.0,0.50038288]
[1733021466144,0.0597231,96018.0,96017.0,0.14208688]
[1733021466348,0.0597231,96018.0,96017.0,0.35220749]
[1733021466764,0.0597231,96018.0,96017.0,0.11408688]
[1733021466765,0.0108231,96018.0,96017.0,0.11408688]
[1733021467175,0.0108231,96018.0,96017.0,0.10708688]
[1733021467516,0.0108231,96018.0,96017.0,0.26308688]
[1733021467664,0.0108231,96018.0,96017.0,0.25708688]
[1733021468042,0.0108231,96018.0,96017.0,0.26508688]
[1733021468245,0.0108231,96018.0,96017.0,0.26808688]
[1733021468860,0.0108231,96018.0,96017.0,0.26508688]
[1733021469064,0.0108231,96018.0,96017.0,0.27008688]
[1733021469324,0.0880231,96018.0,96017.0,0.27008688]
[1733021469941,0.0880231,96018.0,96017.0,0.16724167]
[1733021470169,0.1369231,96018.0,96017.0,0.01724167]
[1733021470777,0.1369231,96018.0,96017.0,0.005]
[1733021471040,0.0108231,96018.0,96017.0,0.31614121]
[1733021471248,0.0108231,96018.0,96017.0,0.32223529]
[1733021471665,0.0108231,96018.0,96017.0,0.32623529]
[1733021472143,0.0108231,96018.0,96017.0,0.32223529]
[1733021472343,0.0108231,96018.0,96017.0,0.32723529]
[1733021472949,0.0108231,96018.0,96017.0,0.32223529]
[1733021473560,0.0108231,96018.0,96017.0,0.32023529]
[1733021474108,0.0108231,96018.0,96017.0,0.32723529]
[1733021474558,0.0108231,96018.0,96017.0,0.32023529]
[1733021474757,0.0108231,96018.0,96017.0,0.32823529]
[1733021476631,0.0108231,96018.0,96017.0,0.01709408]
[1733021476632,0.3452171,96018.0,96017.0,0.01709408]
[1733021477592,0.3452171,96018.0,96001.0,0.0017262]
[1733021477593,0.218275,96008.0,96001.0,0.0017262]
[1733021477820,0.344375,96008.0,96001.0,0.0017262]
[1733021478979,0.46722021,96008.0,96001.0,0.0017262]
[1733021479203,0.00996,96002.0,96001.0,0.0017262]
[1733021479430,0.344388,96002.0,96001.0,0.0017262]
[1733021479671,0.44277482,96002.0,96001.0,0.0017262]
[1733021481338,0.44677482,96002.0,96001.0,0.0027262]
[1733021481616,0.55962003,96002.0,96001.0,0.0027262]
[1733021482260,0.56062003,96002.0,96001.0,0.0027262]
[1733021483514,0.57184799,96002.0,96001.0,0.0027262]
[1733021485226,0.317793,96000.0,95988.0,0.0017256]
[1733021485455,0.46583821,96000.0,95988.0,0.0017256]
[1733021486792,0.343017,95989.0,95988.0,0.0017256]
[1733021487462,0.45586221,95989.0,95988.0,0.0017256]
[1733021487877,0.54411823,95989.0,95988.0,0.0017256]
[1733021488123,0.55511823,95989.0,95988.0,0.0017256]
[1733021488334,0.55511823,95989.0,95979.0,0.0017254]
[1733021488335,0.15466,95986.0,95979.0,0.0017254]
[1733021488566,0.25750521,95986.0,95979.0,0.0017254]
[1733021490716,0.25750521,95986.0,95985.0,0.0027256]
[1733021490717,0.26250521,95986.0,95985.0,0.0027256]
[1733021490944,0.26650521,95986.0,95985.0,0.0027256]
[1733021491149,0.35908823,95986.0,95985.0,0.0017256]
[1733021491363,0.37011698,95986.0,95985.0,0.0017256]
[1733021491587,0.37511698,95986.0,95985.0,0.0027256]
[1733021492941,0.27753396,95986.0,95985.0,0.0027256]
[1733021494657,0.42753396,95986.0,95985.0,0.0027256]
[1733021497696,0.238336,95980.0,95979.0,0.0017254]
[1733021497906,0.61588121,95980.0,95979.0,0.0017254]
[1733021498113,0.70260871,95980.0,95979.0,0.0017254]
[1733021500288,0.70660871,95980.0,95979.0,0.0017254]
[1733021500530,0.71260871,95980.0,95979.0,0.0027254]
[1733021502126,0.62588121,95980.0,95979.0,0.0027254]
[1733021502818,0.353036,95980.0,95979.0,0.0027254]
[1733021503051,0.307836,95980.0,95979.0,0.0027254]
[1733021503290,0.297876,95980.0,95979.0,0.0027254]
[1733021503543,0.01996,95980.0,95979.0,0.0027254]
[1733021503822,0.01996,95980.0,95979.0,0.02400916]
[1733021504058,0.01596,95980.0,95979.0,0.02400916]
[1733021504292,0.00996,95980.0,95979.0,0.02704938]
[1733021504529,0.01996,95980.0,95979.0,0.02804938]
[1733021504775,0.01996,95980.0,95979.0,0.02704938]
[1733021505009,0.01596,95980.0,95979.0,0.02704938]
[1733021505226,0.006,95980.0,95979.0,0.02804938]
[1733021506684,0.006,95980.0,95979.0,0.02904938]
[1733021507322,0.01596,95980.0,95979.0,0.00776562]
[1733021507519,0.01596,95980.0,95979.0,0.0037254]
[1733021508128,0.01596,95980.0,95979.0,0.0027254]
[1733021508303,0.01596,95980.0,95979.0,0.0037254]
[1733021509262,0.00996,95980.0,95979.0,0.0027254]
[1733021510418,0.00996,95980.0,95979.0,0.0017254]
[1733021510565,0.00996,95980.0,95979.0,0.0027254]
[1733021510949,0.00996,95980.0,95979.0,0.0017254]
[1733021511344,0.00996,95980.0,95979.0,0.0027254]
[1733021516566,0.00996,95980.0,95979.0,0.0017254]
[1733021516965,0.01396,95980.0,95979.0,0.0017254]
[1733021517165,0.01596,95980.0,95979.0,0.0017254]
[1733021517774,0.01396,95980.0,95979.0,0.0017254]
[1733021517939,0.01496,95980.0,95979.0,0.0017254]
[1733021518384,0.31796775,95980.0,95979.0,0.0017254]
[1733021518612,0.26550521,95980.0,95979.0,0.0017254]
[1733021519389,0.41450521,95980.0,95979.0,0.0017254]
[1733021519827,0.41050521,95980.0,95979.0,0.0017254]
[1733021520028,0.42150521,95980.0,95979.0,0.0027254]
[1733021520254,0.42150521,95980.0,95979.0,0.0017254]
[1733021520255,0.49750227,95980.0,95979.0,0.0017254]
[1733021520660,0.50550227,95980.0,95979.0,0.0027254]
[1733021520906,0.50550227,95980.0,95979.0,0.0017254]
[1733021521112,0.50250227,95980.0,95979.0,0.0017254]
[1733021521313,0.53350227,95980.0,95979.0,0.0027254]
[1733021521522,0.53750227,95980.0,95979.0,0.0027254]
[1733021521723,0.53750227,95980.0,95979.0,0.0017254]
[1733021521724,0.43750521,95980.0,95979.0,0.0017254]
[1733021521940,0.26750521,95980.0,95979.0,0.0017254]
[1733021522147,0.19800521,95980.0,95979.0,0.0017254]
[1733021522356,0.01396,95980.0,95979.0,0.0017254]
[1733021522767,0.00996,95980.0,95979.0,0.0017254]
[1733021522996,0.01296,95980.0,95979.0,0.0017254]
[1733021523332,0.00996,95980.0,95979.0,0.0027254]
[1733021523533,0.01696,95980.0,95979.0,0.0027254]
[1733021523732,0.01296,95980.0,95979.0,0.0017254]
[1733021523935,0.01996,95980.0,95979.0,0.0027254]
[1733021524355,0.01996,95980.0,95979.0,0.0017254]
[1733021524550,0.02196,95980.0,95979.0,0.0017254]
[1733021524904,0.01196,95980.0,95979.0,0.0017254]
[1733021526560,0.00996,95980.0,95979.0,0.0017254]
[1733021526976,0.01096,95980.0,95979.0,0.0017254]
[1733021529735,0.00996,95980.0,95979.0,0.0017254]
[1733021530185,0.00996,95980.0,95979.0,0.0027254]
[1733021530624,0.01096,95980.0,95979.0,0.0017254]
[1733021530839,0.00996,95980.0,95979.0,0.0017254]
[1733021531291,0.01096,95980.0,95979.0,0.0017254]
[1733021531751,0.00996,95980.0,95979.0,0.0017254]
[1733021532858,0.00996,95980.0,95979.0,0.0027254]
[1733021533280,0.00996,95980.0,95979.0,0.0017254]
[1733021533692,0.00996,95980.0,95979.0,0.0037254]
[1733021535688,0.00996,95980.0,95979.0,0.0057254]
[1733021536147,0.00996,95980.0,95979.0,0.0017254]
[1733021536410,0.00996,95980.0,95979.0,0.0027254]
[1733021536622,0.01096,95980.0,95979.0,0.0027254]
[1733021536824,0.00996,95980.0,95979.0,0.0027254]
[1733021537245,0.00996,95980.0,95979.0,0.0017254]
[1733021537690,0.01196,95980.0,95979.0,0.0017254]
[1733021538095,0.01196,95980.0,95979.0,0.00576474]
[1733021538320,0.01196,95980.0,95979.0,0.0017254]
[1733021538527,0.01196,95980.0,95979.0,0.00576474]
[1733021538732,0.01196,95980.0,95979.0,0.0017254]
[1733021538983,0.01196,95980.0,95979.0,0.00576474]
[1733021539196,0.01196,95980.0,95979.0,0.0017254]
[1733021539404,0.00996,95980.0,95979.0,0.0017254]
[1733021539826,0.00996,95980.0,95979.0,0.0037254]
[1733021540030,0.00996,95980.0,95979.0,0.0017254]
[1733021540241,0.01196,95980.0,95979.0,0.0017254]
[1733021544095,0.00996,95980.0,95979.0,0.0017254]
[1733021544527,0.01196,95980.0,95979.0,0.0017254]
[1733021545583,0.00996,95980.0,95979.0,0.0017254]
[1733021546451,0.0017264,95985.0,95980.0,0.208376]
[1733021546682,0.0017264,95985.0,95982.0,0.416743]
[1733021546902,0.0017264,95985.0,95984.0,0.208368]
[1733021547107,0.0017264,95985.0,95984.0,0.31305706]
[1733021547322,0.0017264,95985.0,95984.0,0.31517028]
[1733021548200,0.0017264,95985.0,95984.0,0.46517028]
[1733021548397,0.0017264,95988.0,95987.0,0.358361]
[1733021548611,0.0017264,95988.0,95987.0,0.46120621]
[1733021548819,0.0017264,95988.0,95987.0,0.46516074]
[1733021549030,0.0017264,95988.0,95987.0,0.57100658]
[1733021549454,0.0027264,95988.0,95987.0,0.57900658]
[1733021549869,0.0027264,95988.0,95987.0,0.57800658]
[1733021550739,0.0037264,95988.0,95987.0,0.55616074]
[1733021553047,0.0037264,95988.0,95987.0,0.96947261]
[1733021553536,0.0037264,95988.0,95987.0,0.55616074]
[1733021556061,0.0037264,95988.0,95987.0,0.58916074]
[1733021556268,0.0037264,95988.0,95987.0,0.63786074]
[1733021557326,0.0027264,95988.0,95987.0,0.63086074]
[1733021558223,0.0017264,95988.0,95987.0,0.62186074]
[1733021558693,0.0027264,95988.0,95987.0,1.0494252]
[1733021558874,0.0017264,95988.0,95987.0,1.0404252]
[1733021559079,0.0027264,95988.0,95987.0,1.0434252]
[1733021559307,0.0027264,95988.0,95987.0,1.0524252]
[1733021559730,0.0027264,95988.0,95987.0,0.63986074]
[1733021561393,0.0027264,95988.0,95987.0,0.55816074]
[1733021561600,0.0027264,95988.0,95987.0,0.48316074]
[1733021562418,0.0017264,95988.0,95987.0,0.46516074]
[1733021562624,0.0017264,95988.0,95987.0,0.70587717]
[1733021562800,0.0027264,95988.0,95987.0,0.71486589]
[1733021562999,0.0027264,95988.0,95987.0,0.70586831]
[1733021563201,0.0037264,95988.0,95987.0,0.70686458]
[1733021563421,0.0037264,95988.0,95987.0,0.70686643]
[1733021563632,0.0037264,95988.0,95987.0,0.71486643]
[1733021564074,0.0037264,95988.0,95987.0,0.71485763]
[1733021564276,0.0037264,95988.0,95987.0,0.48216074]
[1733021570990,0.0037264,95988.0,95987.0,0.76141491]
[1733021571448,0.0037264,95988.0,95987.0,0.78441491]
[1733021572344,0.0037264,95988.0,95987.0,0.50516074]
[1733021575254,0.0037264,95988.0,95987.0,0.51516074]
[1733021575463,0.0037264,95988.0,95987.0,1.0583252]
[1733021575870,0.0037264,95988.0,95987.0,0.64576074]